bitfinex-derivatives/quotes_SOLF0:USTF0_20250527
["timestamp","ask_amount","ask_price","bid_price","bid_amount"]
[1748359180249,30.54,178.11,178.09,0.03799372]
[1748359180449,30.54,178.11,178.01,30.54]
[1748359180848,5.613,178.09,178.01,30.54]
[1748359181451,5.613,178.09,178.03,0.04168377]
[1748359181452,0.03719995,178.07,178.03,0.04168377]
[1748359181656,30.54,178.06,178.01,5.6151]
[1748359181844,5.6142,178.05,177.95,41.7745]
[1748359182051,5.27919571,178.05,177.95,41.7745]
[1748359182454,36.1539,178.06,177.95,41.7745]
[1748359182656,0.03631543,178.02,177.99,0.03933097]
[1748359182857,0.03631543,178.02,178.01,5.6154]
[1748359187252,0.03631543,178.02,178.0,5.6156]
[1748359187457,0.03631543,178.02,177.99,0.03933097]
[1748359188258,30.57631543,178.02,177.99,0.03933097]
[1748359189657,30.57631543,178.02,177.92,38.64343389]
[1748359190156,30.57631543,178.02,177.96,5.6169]
[1748359190360,30.57631543,178.02,177.92,38.64343389]
[1748359190657,5.616,177.99,177.95,0.04136322]
[1748359190858,30.57631543,178.02,177.96,5.6167]
[1748359191062,5.6161,177.99,177.96,5.6167]
[1748359191359,30.57631543,178.02,177.95,0.04136322]
[1748359192259,5.616,178.0,177.96,5.6168]
[1748359192462,9.96338379,178.01,177.95,0.04136322]
[1748359192669,9.96338379,178.01,177.87,42.51718379]
[1748359192955,5.6169,177.97,177.87,42.51718379]
[1748359193162,30.54,177.96,177.87,42.51718379]
[1748359193363,30.54,177.96,177.93,5.6177]
[1748359193663,30.58010776,177.96,177.93,5.65830505]
[1748359194158,30.58010776,177.96,177.93,0.04060505]
[1748359194763,30.58010776,177.96,177.94,5.6174]
[1748359195761,30.58010776,177.96,177.95,5.6173]
[1748359196167,30.58010776,177.96,177.93,0.04060505]
[1748359197270,30.58010776,177.96,177.84,11.2413]
[1748359197466,9.6798,177.95,177.91,5.6184]
[1748359197973,9.6798,177.95,177.84,11.2413]
[1748359198369,0.03635654,177.91,177.88,0.03953901]
[1748359198773,0.03635654,177.91,177.9,5.6189]
[1748359200066,5.654e-05,177.91,177.9,5.6189]
[1748359203879,5.654e-05,177.91,177.88,0.03953901]
[1748359204478,5.619,177.9,177.88,0.03953901]
[1748359204683,30.5,177.89,177.82,2.74297906]
[1748359204978,9.96338379,177.88,177.82,2.74297906]
[1748359205178,13.75098379,177.88,177.82,2.74297906]
[1748359205379,9.96338379,177.85,177.77,4.11538486]
[1748359205575,30.5,177.84,177.73,9.90692289]
[1748359205781,5.6222,177.8,177.79,0.03572727]
[1748359205978,9.96338379,177.82,177.73,9.90692289]
[1748359206175,34.2575,177.81,177.73,9.90692289]
[1748359206486,9.96338379,177.79,177.73,9.90692289]
[1748359206886,5.6235,177.76,177.74,0.04081773]
[1748359207082,30.5,177.75,177.74,0.04081773]
[1748359207480,36.1236,177.75,177.74,0.04081773]
[1748359209083,30.5,177.75,177.74,0.04081773]
[1748359209882,30.5,177.75,177.74,5.66471773]
[1748359210084,0.0368737,177.78,177.74,0.04081773]
[1748359210282,30.5368737,177.78,177.74,0.04081773]
[1748359212391,5.6232,177.77,177.74,0.04081773]
[1748359212590,30.5368737,177.78,177.74,0.04081773]
[1748359213191,0.0368737,177.78,177.74,0.04081773]
[1748359213391,30.5568737,177.78,177.74,0.04081773]
[1748359213994,30.5568737,177.78,177.76,5.6231]
[1748359214282,30.5568737,177.78,177.74,0.04081773]
[1748359215594,30.5568737,177.78,177.75,5.6235]
[1748359216489,30.5568737,177.78,177.76,5.6232]
[1748359216695,30.5568737,177.78,177.74,0.04081773]
[1748359216990,30.5568737,177.78,177.76,5.6231]
[1748359217799,30.5568737,177.78,177.77,5.623]
[1748359217988,30.5568737,177.78,177.74,0.04081773]
[1748359218892,30.5568737,177.78,177.75,5.6234]
[1748359219703,30.5568737,177.78,177.76,5.6232]
[1748359220085,30.5568737,177.78,177.74,0.04081773]
[1748359222001,30.5568737,177.78,177.75,5.6234]
[1748359222597,30.5568737,177.78,177.74,0.04081773]
[1748359225096,5.623,177.77,177.74,0.04081773]
[1748359225501,30.5568737,177.78,177.75,5.6235]
[1748359225804,30.5568737,177.78,177.74,0.04081773]
[1748359226103,30.5568737,177.78,177.74,5.66461773]
[1748359226297,30.5568737,177.78,177.74,0.04081773]
[1748359226696,5.6246,177.72,177.63,5.7943]
[1748359226897,2.0424,177.8,177.61,30.52]
[1748359226898,30.52,177.71,177.61,30.52]
[1748359227100,16.18760325,177.74,177.56,16.18760325]
[1748359227101,30.52,177.7,177.64,5.6268]
[1748359227405,30.52,177.7,177.57,30.52]
[1748359227406,5.6261,177.68,177.57,30.52]
[1748359227594,30.52,177.7,177.57,30.52]
[1748359227798,30.52,177.7,177.67,5.6259]
[1748359227998,30.55549691,177.7,177.67,5.66466178]
[1748359228507,30.55549691,177.7,177.67,0.03876178]
[1748359228807,0.03549691,177.7,177.67,0.03876178]
[1748359229004,0.03549691,177.7,177.69,5.6255]
[1748359234496,9.691e-05,177.7,177.69,5.6255]
[1748359236207,9.691e-05,177.7,177.68,5.6257]
[1748359236802,9.691e-05,177.7,177.68,5.6258]
[1748359237007,9.691e-05,177.7,177.67,0.03876178]
[1748359237197,5.6258,177.68,177.67,0.03876178]
[1748359239807,30.48,177.69,177.67,0.03876178]
[1748359240009,9.691e-05,177.7,177.67,0.03876178]
[1748359240308,9.691e-05,177.7,177.69,5.6255]
[1748359247711,30.48,177.82,177.72,9.93217128]
[1748359248116,30.48,177.82,177.81,5.6217]
[1748359248307,516.52,177.86,177.75,40.41217128]
[1748359248613,0.03606678,177.82,177.79,0.04064127]
[1748359249217,0.03606678,177.82,177.79,5.66274127]
[1748359249419,29.48,177.81,177.79,0.04064127]
[1748359250922,35.1017,177.81,177.79,0.04064127]
[1748359251112,29.48,177.81,177.79,0.04064127]
[1748359251814,29.48,177.81,177.79,5.66294127]
[1748359252728,29.48,177.81,177.79,0.04064127]
[1748359253319,5.622,177.8,177.79,0.04064127]
[1748359254021,31.3888,177.81,177.69,3.7678]
[1748359254419,31.3888,177.81,177.77,5.6227]
[1748359254618,5.6223,177.8,177.77,5.6227]
[1748359254812,31.3888,177.81,177.69,3.7678]
[1748359255018,0.04200879,177.77,177.73,0.03860479]
[1748359255718,5.66500879,177.77,177.74,5.6237]
[1748359256123,0.04200879,177.77,177.73,0.03860479]
[1748359256724,30.48,177.76,177.73,0.03860479]
[1748359257421,30.48,177.76,177.75,5.6236]
[1748359258025,0.04200879,177.77,177.76,5.6233]
[1748359262121,0.04200879,177.77,177.73,0.03860479]
[1748359262628,0.04200879,177.77,177.74,5.6239]
[1748359263527,0.04200879,177.77,177.73,0.03860479]
[1748359264024,0.04200879,177.77,177.75,5.6233]
[1748359264220,0.04200879,177.77,177.73,0.03860479]
[1748359264625,0.04200879,177.77,177.73,5.66270479]
[1748359265222,5.6235,177.76,177.73,0.03860479]
[1748359265425,0.04200879,177.77,177.73,0.03860479]
[1748359265727,20.02929277,177.77,177.65,6.56260383]
[1748359265938,19.98728398,177.77,177.68,5.6257]
[1748359266135,3.8119,177.77,177.65,3.8183]
[1748359266631,30.44,177.76,177.65,6.56260383]
[1748359266832,0.03919066,177.73,177.69,0.0363823]
[1748359267038,0.03919066,177.73,177.72,5.6242]
[1748359267729,0.03919066,177.73,177.71,5.6248]
[1748359269031,0.03919066,177.73,177.69,0.0363823]
[1748359269632,5.6252,177.7,177.69,0.0363823]
[1748359270032,30.44,177.71,177.64,5.6269]
[1748359270033,5.6262,177.67,177.64,5.6269]
[1748359271032,0.03616249,177.67,177.65,5.6267]
[1748359271636,0.03616249,177.67,177.66,5.6265]
[1748359274540,0.03616249,177.67,177.64,0.04325428]
[1748359276348,5.66236249,177.67,177.64,5.67015428]
[1748359277244,5.66236249,177.67,177.64,0.04325428]
[1748359277840,0.03616249,177.67,177.64,0.04325428]
[1748359278443,5.6265,177.66,177.64,0.04325428]
[1748359279041,5.6268,177.65,177.64,0.04325428]
[1748359279245,36.0868,177.65,177.64,0.04325428]
[1748359280043,5.6276,177.63,177.55,124.81898993]
[1748359280247,40.40160852,177.65,177.55,30.46]
[1748359280442,5.6277,177.62,177.58,5.6288]
[1748359280838,5.66794479,177.62,177.58,0.04042235]
[1748359281241,5.66794479,177.62,177.59,5.6285]
[1748359281445,0.04024479,177.62,177.58,0.04042235]
[1748359281651,0.04024479,177.62,177.61,5.628]
[1748359284941,4.479e-05,177.62,177.61,5.628]
[1748359291146,4.479e-05,177.62,177.58,0.04042235]
[1748359291748,5.62794479,177.62,177.59,5.6285]
[1748359292351,5.62794479,177.62,177.58,0.04042235]
[1748359292352,4.479e-05,177.62,177.61,5.628]
[1748359297351,30.42,177.79,177.61,165.69]
[1748359297555,30.42,177.79,177.65,16.20100399]
[1748359297756,36.0423,177.79,177.66,30.42]
[1748359298055,30.42,177.79,177.66,30.42]
[1748359298246,0.03892963,177.74,177.71,0.04019053]
[1748359299557,0.03892963,177.74,177.72,5.6245]
[1748359299748,0.03892963,177.74,177.71,0.04019053]
[1748359301059,0.03892963,177.74,177.72,5.6245]
[1748359302464,0.03892963,177.74,177.73,5.6242]
[1748359302960,0.03892963,177.74,177.71,0.04019053]
[1748359303964,0.03892963,177.74,177.73,5.6242]
[1748359304561,2.963e-05,177.74,177.73,5.6242]
[1748359308760,1.9682,177.88,177.73,21.82100399]
[1748359309069,1.9682,177.88,177.73,16.20100399]
[1748359309472,1.9682,177.88,177.85,5.6204]
[1748359309667,2.0085777,177.88,177.85,0.03673702]
[1748359310275,0.0403777,177.88,177.85,0.03673702]
[1748359311668,5.6598777,177.88,177.85,0.03673702]
[1748359311870,0.0403777,177.88,177.85,0.03673702]
[1748359312372,5.6201,177.86,177.85,0.03673702]
[1748359312975,5.6209,177.84,177.8,5.6219]
[1748359313180,36.0209,177.84,177.8,5.6219]
[1748359313672,5.6211,177.83,177.8,5.6219]
[1748359313877,30.4,177.84,177.79,5.6223]
[1748359314069,0.03607519,177.83,177.8,0.04096594]
[1748359315176,5.6215,177.82,177.8,0.04096594]
[1748359316172,0.03607519,177.83,177.8,0.04096594]
[1748359316677,5.6217,177.81,177.8,0.04096594]
[1748359317065,1.9919,177.82,177.8,0.04096594]
[1748359317270,7.5534,177.81,177.8,0.04096594]
[1748359317673,1.9317,177.81,177.8,0.04096594]
[1748359319573,1.9317,177.81,177.8,5.66296594]
[1748359320378,1.9317,177.81,177.8,0.04096594]
[1748359321680,1.9317,177.81,177.69,30.4]
[1748359322078,5.6221,177.8,177.76,5.623]
[1748359322376,30.38,177.79,177.76,5.623]
[1748359322576,30.38,177.79,177.69,30.4]
[1748359322877,0.04216913,177.76,177.72,0.03972516]
[1748359323571,0.04216913,177.76,177.75,5.6236]
[1748359324370,6.913e-05,177.76,177.75,5.6236]
[1748359325076,30.38,177.85,177.84,5.6208]
[1748359328382,0.04288905,177.86,177.85,5.6204]
[1748359328676,8.905e-05,177.86,177.85,5.6204]
[1748359330476,8.905e-05,177.86,177.83,0.03612366]
[1748359330981,2.01198905,177.86,177.78,5.6224]
[1748359331186,2.0119,177.86,177.78,5.6224]
[1748359331380,5.6216,177.82,177.78,5.6224]
[1748359331680,30.36,177.81,177.79,5.6221]
[1748359331875,30.36,177.81,177.78,0.04090644]
[1748359332580,30.36,177.81,177.78,5.66340644]
[1748359333077,30.36,177.81,177.78,0.04090644]
[1748359333981,30.36,177.81,177.79,5.622]
[1748359334278,30.36,177.81,177.78,0.04090644]
[1748359334677,30.36,177.81,177.79,5.6223]
[1748359334880,0.03871111,177.82,177.78,0.04090644]
[1748359335772,5.6223,177.79,177.78,0.04090644]
[1748359335978,30.36,177.79,177.78,0.04090644]
[1748359336583,30.36,177.79,177.78,5.66360644]
[1748359336785,30.36,177.79,177.78,0.04090644]
[1748359337685,35.9823,177.79,177.78,0.04090644]
[1748359337888,30.36,177.79,177.78,0.04090644]
[1748359339078,35.9823,177.79,177.78,0.04090644]
[1748359339285,35.9823,177.79,177.67,34.1671]
[1748359339286,30.36,177.79,177.67,34.1671]
[1748359339483,30.36,177.79,177.72,5.6243]
[1748359339683,30.36,177.79,177.67,34.1671]
[1748359340285,0.04309314,177.75,177.72,5.6243]
[1748359340690,0.04309314,177.75,177.71,0.03702073]
[1748359341592,5.66679314,177.75,177.71,0.03702073]
[1748359341790,30.38,177.74,177.71,0.03702073]
[1748359341980,30.38,177.74,177.73,5.6242]
[1748359342179,30.38,177.74,177.71,0.03702073]
[1748359342382,30.38,177.74,177.73,5.6242]
[1748359342592,30.38,177.74,177.71,0.03702073]
[1748359343785,36.0039,177.74,177.71,5.66182073]
[1748359343981,30.38,177.74,177.71,0.03702073]
[1748359344187,5.6259,177.68,177.64,5.627]
[1748359344388,36.0059,177.68,177.64,5.627]
[1748359344595,36.0059,177.68,177.6,1.9872]
[1748359344596,30.38,177.68,177.6,1.9872]
[1748359344792,5.6265,177.66,177.59,30.38]
[1748359344995,5.6265,177.66,177.56,489.7668]
[1748359345290,0.03746991,177.63,177.61,5.6278]
[1748359345890,0.03746991,177.63,177.6,5.65579229]
[1748359346087,0.03746991,177.63,177.6,0.02739229]
[1748359346492,0.03746991,177.63,177.61,5.628]
[1748359346889,0.03746991,177.63,177.6,0.02739229]
[1748359347094,30.41746991,177.63,177.6,0.02739229]
[1748359347593,30.41746991,177.63,177.6,5.65569229]
[1748359349898,36.04496991,177.63,177.6,0.02739229]
[1748359350890,30.41746991,177.63,177.6,0.02739229]
[1748359351487,4.0435,177.62,177.6,0.02739229]
[1748359351686,5.6286,177.6,177.52,1.9161]
[1748359352293,4.0435,177.62,177.52,1.9161]
[1748359352494,30.38,177.63,177.52,1.9161]
[1748359352690,0.04327739,177.59,177.58,5.629]
[1748359353004,7.739e-05,177.59,177.58,5.629]
[1748359355093,7.739e-05,177.59,177.57,5.6703582]
[1748359355293,7.739e-05,177.59,177.57,0.0412582]
[1748359355494,7.739e-05,177.59,177.57,5.6702582]
[1748359355694,7.739e-05,177.59,177.57,0.0412582]
[1748359356288,7.739e-05,177.59,177.58,5.629]
[1748359357593,7.739e-05,177.59,177.57,0.0412582]
[1748359358794,7.739e-05,177.59,177.57,5.6704582]
[1748359358995,7.739e-05,177.59,177.57,0.0412582]
[1748359359389,7.739e-05,177.59,177.57,5.6703582]
[1748359359596,7.739e-05,177.59,177.57,0.0412582]
[1748359360888,30.38007739,177.59,177.57,0.0412582]
[1748359361095,36.00907739,177.59,177.57,0.0412582]
[1748359361901,30.38007739,177.59,177.57,0.0412582]
[1748359362698,30.38007739,177.59,177.58,5.629]
[1748359363302,7.739e-05,177.59,177.58,5.629]
[1748359366503,7.739e-05,177.59,177.57,0.0412582]
[1748359366906,30.38,177.58,177.57,0.0412582]
[1748359367802,7.739e-05,177.59,177.57,0.0412582]
[1748359368204,7.739e-05,177.59,177.58,5.629]
[1748359380413,7.739e-05,177.59,177.58,7.4808]
[1748359383816,30.36,177.73,177.58,1.8518]
[1748359384317,16.20100399,177.72,177.58,1.8518]
[1748359384521,5.627,177.65,177.61,5.6278]
[1748359384715,30.36,177.68,177.55,116.6634]
[1748359384908,0.04184712,177.63,177.6,0.03917836]
[1748359385211,4.712e-05,177.63,177.62,5.6274]
[1748359386008,4.712e-05,177.63,177.62,9.5147]
[1748359386519,2.0431,177.76,177.62,9.5073]
[1748359386815,2.0431,177.76,177.63,16.20100399]
[1748359386816,30.36,177.75,177.63,16.20100399]
[1748359387024,35.9838,177.75,177.64,112.64]
[1748359387215,30.36,177.75,177.64,112.64]
[1748359387419,0.04261742,177.71,177.68,0.04300975]
[1748359387716,0.04261742,177.71,177.7,5.6252]
[1748359389621,0.04261742,177.71,177.69,5.6254]
[1748359390419,0.04261742,177.71,177.7,5.6252]
[1748359391817,0.04261742,177.71,177.68,0.04300975]
[1748359392016,30.34,177.7,177.68,0.04300975]
[1748359392921,35.9652,177.7,177.68,0.04300975]
[1748359393124,30.34,177.7,177.68,0.04300975]
[1748359393522,35.9654,177.7,177.68,0.04300975]
[1748359394123,30.34,177.7,177.69,5.6255]
[1748359394421,1.742e-05,177.71,177.68,0.04300975]
[1748359394622,1.742e-05,177.71,177.7,5.6252]
[1748359395319,1.742e-05,177.71,177.7,35.9652]
[1748359397322,1.742e-05,177.71,177.7,5.6252]
[1748359411142,1.742e-05,177.71,177.68,0.04300975]
[1748359411143,1.742e-05,177.71,177.69,5.6255]
[1748359412138,1.742e-05,177.71,177.7,5.6252]
[1748359431447,1.742e-05,177.71,177.69,5.6254]
[1748359432455,1.742e-05,177.71,177.7,5.6252]
[1748359441151,6.97061618,177.84,177.7,30.32]
[1748359441354,5.9328,177.84,177.71,9.93205251]
[1748359441569,5.9328,177.84,177.79,5.6221]
[1748359441861,5.9328,177.84,177.72,2.73783603]
[1748359442057,0.04047212,177.8,177.76,0.04314844]
[1748359442662,0.04047212,177.8,177.77,5.6227]
[1748359444155,5.66277212,177.8,177.77,5.6227]
[1748359444358,0.04047212,177.8,177.76,5.66634844]
[1748359444562,9.97252463,177.8,177.76,0.04314844]
[1748359444761,5.6233,177.77,177.71,2.73783603]
[1748359444958,32.1782,177.76,177.71,2.73783603]
[1748359445162,34.1315,177.76,177.71,2.73783603]
[1748359445358,32.1782,177.76,177.71,2.73783603]
[1748359445558,32.1782,177.76,177.75,5.6236]
[1748359445964,32.1782,177.76,177.74,0.0406219]
[1748359446260,32.1782,177.76,177.71,5.6246]
[1748359446463,5.6237,177.75,177.71,5.6246]
[1748359446764,5.6237,177.75,177.72,5.6245]
[1748359447069,5.65925955,177.75,177.72,0.03591989]
[1748359447570,5.624,177.74,177.72,0.03591989]
[1748359447764,0.03555955,177.75,177.72,0.03591989]
[1748359448458,0.03555955,177.75,177.74,5.6239]
[1748359449256,0.03555955,177.75,177.72,0.03591989]
[1748359449458,9.93205251,177.73,177.66,2.74832368]
[1748359449670,2.0045,177.72,177.64,4.09898617]
[1748359449863,30.3,177.71,177.63,2.74832368]
[1748359450163,1.8782,177.76,177.63,12.68037619]
[1748359450372,0.04110346,177.71,177.63,12.68037619]
[1748359450570,0.04110346,177.71,177.7,5.6249]
[1748359451272,3.46e-06,177.71,177.7,5.6249]
[1748359452666,3.46e-06,177.71,177.7,8.37249092]
[1748359453460,3.46e-06,177.71,177.7,5.6249]
[1748359467976,1.8902,177.8,177.79,5.6223]
[1748359468778,4.0018,177.81,177.75,2.05880534]
[1748359468979,0.04325809,177.8,177.76,0.03992065]
[1748359469478,0.04325809,177.8,177.76,2.09855443]
[1748359469983,0.04325809,177.8,177.79,5.6223]
[1748359470373,5.809e-05,177.8,177.79,5.6223]
[1748359471276,5.809e-05,177.8,177.76,2.09855443]
[1748359471786,5.809e-05,177.8,177.79,5.6223]
[1748359471988,5.809e-05,177.8,177.76,2.09855443]
[1748359472287,5.809e-05,177.8,177.76,0.03992065]
[1748359472586,5.809e-05,177.8,177.79,5.6223]
[1748359475280,5.809e-05,177.8,177.76,0.03992065]
[1748359475786,5.809e-05,177.8,177.79,5.6223]
[1748359476092,5.809e-05,177.8,177.76,0.03992065]
[1748359476286,30.28,177.79,177.76,0.03992065]
[1748359476788,30.28,177.79,177.76,5.66312065]
[1748359476789,35.9026,177.79,177.76,5.66312065]
[1748359477885,30.28,177.79,177.77,5.6229]
[1748359478187,30.28,177.79,177.76,0.03992065]
[1748359478385,30.28,177.79,177.77,5.6228]
[1748359480292,30.28,177.79,177.78,5.6227]
[1748359481783,5.809e-05,177.8,177.79,5.6223]
[1748359488197,5.809e-05,177.8,177.76,0.03992065]
[1748359488697,5.809e-05,177.8,177.78,5.6226]
[1748359490099,5.62225809,177.8,177.77,5.6229]
[1748359490300,5.809e-05,177.8,177.76,0.03992065]
[1748359490598,5.809e-05,177.8,177.77,5.6229]
[1748359491197,5.6224,177.79,177.76,5.66312065]
[1748359491400,5.809e-05,177.8,177.76,0.03992065]
[1748359491598,3.9002,177.78,177.76,0.03992065]
[1748359491799,5.623,177.77,177.76,0.03992065]
[1748359492996,13.83225251,177.78,177.76,0.03992065]
[1748359493300,3.9002,177.78,177.76,0.03992065]
[1748359493801,3.9002,177.78,177.77,5.623]
[1748359497192,3.9002,177.78,177.76,0.03992065]
[1748359497407,19.45225251,177.78,177.72,2.06001979]
[1748359497700,9.93205251,177.73,177.68,2.06030087]
[1748359497903,30.28,177.72,177.68,2.06030087]
[1748359498097,30.28,177.72,177.65,2.74250572]
[1748359498098,9.93205251,177.7,177.65,2.74250572]
[1748359498300,0.03750104,177.69,177.66,0.03885248]
[1748359498499,4.02050104,177.69,177.66,0.03885248]
[1748359498796,5.6261,177.68,177.66,0.03885248]
[1748359499001,4.02050104,177.69,177.66,0.03885248]
[1748359499002,30.28,177.67,177.66,0.03885248]
[1748359501291,30.28,177.67,177.66,5.66535248]
[1748359501700,30.28,177.67,177.66,0.03885248]
[1748359504894,30.28,177.67,177.66,5.66535248]
[1748359505097,0.03750104,177.69,177.66,0.03885248]
[1748359505607,0.03750104,177.69,177.66,5.66515248]
[1748359506104,0.03750104,177.69,177.66,0.03885248]
[1748359506509,0.03750104,177.69,177.57,2.74250572]
[1748359506510,16.20474848,177.68,177.57,2.74250572]
[1748359506707,16.20474848,177.64,177.56,9.74407715]
[1748359506903,32.295,177.63,177.56,4.11467715]
[1748359507410,0.03711677,177.61,177.6,5.6281]
[1748359508810,1.677e-05,177.61,177.6,5.6281]
[1748359511109,1.677e-05,177.61,177.59,0.04329686]
[1748359512113,1.677e-05,177.61,177.6,5.6284]
[1748359512811,2.56106187,177.61,177.6,5.6284]
[1748359513017,1.677e-05,177.61,177.6,5.6284]
[1748359513814,30.36,177.62,177.61,5.628]
[1748359514009,30.38,177.66,177.59,0.04329686]
[1748359514421,30.38,177.66,177.63,5.6274]
[1748359514610,30.38,177.66,177.53,30.36]
[1748359514815,0.03577965,177.61,177.58,0.03591842]
[1748359515011,0.03577965,177.61,177.6,5.6284]
[1748359515715,0.03577965,177.61,177.58,0.03591842]
[1748359515913,30.41577965,177.61,177.58,0.03591842]
[1748359516314,5.6284,177.6,177.58,0.03591842]
[1748359517213,36.04387965,177.61,177.58,0.03591842]
[1748359517912,30.41577965,177.61,177.58,0.03591842]
[1748359518318,5.6286,177.6,177.58,0.03591842]
[1748359518524,30.41577965,177.61,177.58,0.03591842]
[1748359518918,5.6287,177.59,177.58,0.03591842]
[1748359520922,3.9326,177.6,177.58,0.03591842]
[1748359521126,0.03577965,177.61,177.58,0.03591842]
[1748359521334,0.03577965,177.61,177.6,5.6284]
[1748359527226,0.03577965,177.61,177.58,0.03591842]
[1748359528129,5.6284,177.6,177.58,0.03591842]
[1748359529534,5.66387965,177.61,177.58,5.66471842]
[1748359529931,0.03577965,177.61,177.58,0.03591842]
[1748359530329,5.6285,177.6,177.58,0.03591842]
[1748359530840,5.6285,177.6,177.58,5.66481842]
[1748359532335,5.6287,177.59,177.58,0.03591842]
[1748359532633,36.0087,177.59,177.58,0.03591842]
[1748359533135,32.86396283,177.59,177.49,5.8058]
[1748359533330,32.86396283,177.59,177.52,5.6306]
[1748359533331,9.94655758,177.58,177.52,5.6306]
[1748359533529,2.48421787,177.57,177.52,5.6306]
[1748359533830,9.94655758,177.58,177.49,5.8058]
[1748359534036,9.94655758,177.58,177.51,5.6312]
[1748359534231,0.04219879,177.55,177.47,38.73340639]
[1748359534433,32.86450896,177.54,177.49,5.6316]
[1748359534641,32.86450896,177.54,177.46,30.38]
[1748359534642,30.38,177.54,177.46,30.38]
[1748359535532,5.6308,177.53,177.5,5.6313]
[1748359535937,5.6308,177.53,177.46,30.38]
[1748359536141,0.03724551,177.51,177.46,30.38]
[1748359536526,0.03724551,177.51,177.43,6.82483692]
[1748359536840,0.03724551,177.51,177.43,5.8445]
[1748359537137,5.6316,177.5,177.46,5.6325]
[1748359537841,5.6316,177.5,177.47,5.6324]
[1748359538139,5.66844551,177.51,177.43,5.8445]
[1748359538734,35.9516,177.5,177.43,5.8445]
[1748359539134,30.32,177.5,177.43,5.8445]
[1748359539534,5.632,177.49,177.43,5.8445]
[1748359539731,9.94655758,177.49,177.43,1.8796]
[1748359539939,5.6327,177.47,177.38,30.32]
[1748359540139,0.03907182,177.44,177.38,30.32]
[1748359540340,0.03907182,177.44,177.43,5.6337]
[1748359540636,35.9516,177.5,177.38,30.32]
[1748359541037,35.9516,177.5,177.46,5.6326]
[1748359541433,30.32,177.5,177.38,30.32]
[1748359541641,2.48503267,177.49,177.42,0.03608166]
[1748359541832,0.03546027,177.47,177.42,0.03608166]
[1748359542142,0.03546027,177.47,177.46,5.6325]
[1748359542645,0.03546027,177.47,177.42,0.03608166]
[1748359543243,0.03546027,177.47,177.45,5.6329]
[1748359544345,0.03546027,177.47,177.46,5.6328]
[1748359544940,0.03546027,177.47,177.45,5.633]
[1748359545243,0.03546027,177.47,177.42,0.03608166]
[1748359546347,0.03546027,177.47,177.46,5.6328]
[1748359547242,2.53568133,177.47,177.46,5.6328]
[1748359547436,5.03589448,177.47,177.46,5.6328]
[1748359547642,2.53568133,177.47,177.46,5.6328]
[1748359548236,3.9841,177.58,177.46,5.6328]
[1748359548540,30.32,177.54,177.43,42.28075758]
[1748359549140,5.6311,177.52,177.43,42.28075758]
[1748359549445,0.03912133,177.49,177.47,5.6322]
[1748359550042,0.03912133,177.49,177.46,0.03947848]
[1748359550346,5.67102133,177.49,177.46,0.03947848]
[1748359551145,5.6322,177.48,177.46,0.03947848]
[1748359554250,5.6325,177.47,177.46,0.03947848]
[1748359561554,5.6339,177.43,177.39,2.0123]
[1748359561766,5.6339,177.43,177.35,34.2493]
[1748359561949,5.6339,177.43,177.34,16.9091]
[1748359561950,5.6339,177.43,177.4,5.6345]
[1748359562152,5.6344,177.42,177.31,40.26655758]
[1748359562348,30.32,177.44,177.31,40.26655758]
[1748359562549,30.32,177.44,177.39,5.6349]
[1748359562858,0.03643276,177.43,177.4,0.04223397]
[1748359563071,0.03771285,177.43,177.4,0.03697601]
[1748359563260,5.6344,177.41,177.4,0.03697601]
[1748359565051,5.67181285,177.43,177.4,0.03697601]
[1748359565253,0.03771285,177.43,177.4,0.03697601]
[1748359565461,164.12158398,178.19,177.4,0.03697601]
[1748359565462,30.32,177.48,177.4,0.03697601]
[1748359565663,30.32,177.48,177.37,9.94655758]
[1748359565664,30.32,177.48,177.47,5.6325]
[1748359566858,0.03891315,177.49,177.48,5.6322]
[1748359572568,0.03891315,177.49,177.46,0.04287427]
[1748359572960,5.6325,177.47,177.46,0.04287427]
[1748359573162,35.9525,177.47,177.46,0.04287427]
[1748359573559,40.26655758,177.47,177.37,32.3563]
[1748359574070,40.26655758,177.47,177.37,2.0363]
[1748359574562,5.67244226,177.44,177.4,5.67169299]
[1748359574769,0.03884226,177.44,177.4,5.67169299]
[1748359574967,0.03884226,177.44,177.4,0.03719299]
[1748359575365,5.6341,177.43,177.4,0.03719299]